Cogmind - Beta 14 --- EXPLORER MODE // 2024.08.17 @ 12:39:53 Player: Sparranova Result: Self-destructed Performance ------------- Evolutions (4) 2000 Regions Visited (6) 1200 Robots Destroyed (42) 210 Value Destroyed (1100) 1100 Prototype IDs (20) 400 Alien Tech Used (0) 0 Bonus (2500) 2500 TOTAL SCORE: 7410 Bonus ------- Entered Garrisons 200 Delivered SUBCON Basin 2000 Registered with UFD 300 Cogmind --------- Core Integrity 850/850 Matter 300/300 Energy 180/180 System Corruption 0% Temperature Cool (0) Movement Treading (160) Location -6/Garrison Parts ------- > --- POWER (2) -------- Meta Core > --- PROPULSION (5+1) - Improved Treads (+) Spiked Treads Spiked Treads > --- UTILITY (6) ------ Large Storage Unit Makeshift Hacking Suite Tech Extrapolator > --- WEAPON (3+1) ----- Heavy Riot Gun EM Pulse Cannon Makeshift Hammer (+) > --- INVENTORY (15) --- Improved Treads Scrap Suit Makeshift Light Armor Plating Riot Gun Riot Gun Ion Cannon Heavy Plasma Cannon Gauss Rifle Heavy Rocket Launcher Peak State ------------ > --- POWER ------------ Meta Core > --- PROPULSION ------- Improved Treads Improved Treads Spiked Treads > --- UTILITY ---------- Humpback Makeshift Light Armor Plating > --- WEAPON ----------- Heavy Riot Gun Beam Cannon Makeshift Hammer > --- INVENTORY -------- Subdweller Power Source Subdweller Monowheel ECM Suite Scrap Shield Makeshift Hacking Suite Riot Gun Riot Gun Subdweller Laser SUBCON Basin [Rating: 54] Favorites ----------- Power Meta Core Engine Improved Ion Engine Power Core Meta Core Propulsion Improved Treads Treads Improved Treads Utility Makeshift Light Armor Plating Device Terrain Scanner Storage Large Storage Unit Processor Tech Extrapolator Hackware Makeshift Hacking Suite Protection Makeshift Light Armor Plating Weapon Beam Cannon Energy Gun Heavy Riot Gun Energy Cannon Beam Cannon Ballistic Gun Heavy Assault Rifle Launcher Grenade Launcher Impact Weapon Makeshift Hammer Build | -11 -10 -10 -9 -9 -6 -6 ------- Run | Yrd Mat Sub Rec Scr Fac Gar Slots Evolved 9 | . 1 . . . 8 . Power 1 | . . . . . 1 . Propulsion 3 | . . . . . 3 . Utility 4 | . 1 . . . 3 . Weapon 1 | . . . . . 1 . Parts Attached 38 | 8 5 16 3 6 . . Power 5 | 2 1 2 . . . . Engine 4 | 2 1 1 . . . . Core 1 | . . 1 . . . . Reactor . | . . . . . . . Propulsion 9 | 2 2 3 . 2 . . Treads 9 | 2 2 3 . 2 . . Leg . | . . . . . . . Wheel . | . . . . . . . Hover . | . . . . . . . Flight . | . . . . . . . Utility 13 | 2 2 4 3 2 . . Device 2 | 1 . 1 . . . . Storage 5 | 1 1 1 . 2 . . Processor 1 | . . . 1 . . . Hackware 1 | . . . 1 . . . Protection 4 | . 1 2 1 . . . Artifact . | . . . . . . . Weapon 11 | 2 . 7 . 2 . . Energy Gun 3 | 2 . 1 . . . . Energy Cannon 3 | . . 1 . 2 . . Ballistic Gun 2 | . . 2 . . . . Ballistic Cannon . | . . . . . . . Launcher 2 | . . 2 . . . . Special Weapon . | . . . . . . . Impact Weapon 1 | . . 1 . . . . Slashing Weapon . | . . . . . . . Piercing Weapon . | . . . . . . . Special Melee Weapon . | . . . . . . . Unidentified Prototypes . | . . . . . . . Parts Lost 5 | . . 5 . . . . Power 1 | . . 1 . . . . Propulsion 1 | . . 1 . . . . Utility 2 | . . 2 . . . . Weapon 1 | . . 1 . . . . Highest Loss Streak 1 | . . 1 . . . . To Critical Strikes 1 | . . 1 . . . . Average Slot Usage (%) 87 | . 99 82 81 92 55 55 Engine 4 | . 11 7 . . . . Core 4 | . . . 9 9 5 5 Treads 26 | . 25 25 27 28 16 16 Device 3 | . 12 3 . . . . Storage 8 | . 12 11 8 2 5 5 Processor 2 | . . . . 9 5 5 Hackware 2 | . . . . 9 5 5 Protection 8 | . 12 10 9 4 . . Energy Gun 7 | . 25 1 9 9 5 5 Energy Cannon 9 | . . 11 9 9 5 5 Launcher 1 | . . 3 . . . . Impact Weapon 6 | . . 4 9 9 5 5 Peak Build Rating 54 | 7 11 54 54 44 44 44 Average Rating 33 | 5 10 31 51 42 44 44 On Entrance 29 | . 7 11 54 43 44 44 Naked Turns . | . . . . . . . Heaviest Build 234 | 20 33 220 234 39 39 39 Greatest Support 66 | 40 46 66 66 66 63 63 Greatest Overweight (x) 4 | . . 4 3 . . . Average Overweight (x) . | . . 1 2 . . . Largest Inventory Capacity 35 | 10 15 35 35 35 15 15 Average Capacity 20 | 8 14 27 31 7 15 15 Most Carried 24 | 7 11 24 24 10 10 10 Average Carried 12 | 3 9 16 20 5 10 10 Final Capacity 35 | 10 15 35 5 15 15 15 Final Carried 24 | 7 11 24 5 10 10 10 Class Distribution -------------------- 62% | Hacker-Mutant 37% | Hauler-Mutant Dominant Class ---------------- Hacker-Mutant | -10/Materials Hauler-Mutant | -10/Subcaves Hauler-Mutant | -9/Recycling Hacker-Mutant | -9/Scraptown Hacker-Mutant | -6/Factory Hacker-Mutant | -6/Garrison Resources | -11 -10 -10 -9 -9 -6 -6 ----------- Run | Yrd Mat Sub Rec Scr Fac Gar Matter Collected 789 | 166 164 237 113 109 . . Remotely . | . . . . . . . Salvage Created 1388 | . 671 355 332 . 30 . Parts 89 | . 55 20 14 . . . Haulers Intercepted 2 | . 2 . . . . . Recyclers Shooed . | . . . . . . . Parts Field Recycled . | . . . . . . . Retrieved Matter . | . . . . . . . Parts Self-Destructed . | . . . . . . . Prevented . | . . . . . . . Kills | -11 -10 -10 -9 -9 -6 -6 ------- Run | Yrd Mat Sub Rec Scr Fac Gar Combat Hostiles Destroyed 34 | . 15 13 5 . 1 . Melee 1 | . . . . . 1 . Guns 17 | . 10 3 4 . . . Cannons 3 | . . 2 1 . . . AOE 9 | . 4 5 . . . . Classes Destroyed 8 | . 6 2 . . . . Builder 2 | . 1 . . . 1 . Hauler 2 | . 2 . . . . . Mechanic 1 | . 1 . . . . . Watcher 3 | . 3 . . . . . Swarmer 11 | . 6 4 . . 1 . Grunt 10 | . 9 . 1 . . . Sentry 5 | . . 1 4 . . . Subdweller 8 | . . 8 . . . . Best Kill Streak 4 | . 4 3 2 . 2 . Combat Bots Only 3 | . 3 3 2 . 1 . Max Kills in Single Turn 3 | . 2 3 1 . 1 . Gunslinging . | . . . . . . . Exploded 3 | . 2 3 . . . . Melee 1 | . . . . . 1 . Uniques/NPCs Destroyed . | . . . . . . . Combat | -11 -10 -10 -9 -9 -6 -6 -------- Run | Yrd Mat Sub Rec Scr Fac Gar Hostile Shots Fired 213 | . 40 138 35 . . . Missed 65 | . 13 45 7 . . . Damage Taken 1462 | . 276 973 213 . . . Core 212 | . 20 166 26 . . . Absorbed by Shields 22 | . . . 22 . . . Ignored by Resistances 872 | . 172 550 150 . . . Regen/Repaired (Parts) 54 | . 54 . . . . . Core Remaining (%) 57 | 100 . . . 15 . . Volleys Fired 114 | . 30 73 11 . . . Largest 2 | . 2 2 2 . . . Hottest 120 | . 80 83 120 . . . Shots Fired 168 | . 60 86 22 . . . Gun 96 | . 60 25 11 . . . Cannon 50 | . . 39 11 . . . Launcher 22 | . . 22 . . . . Special . | . . . . . . . Kinetic 3 | . . 3 . . . . Thermal 50 | . . 39 11 . . . Explosive 22 | . . 22 . . . . Electromagnetic 93 | . 60 22 11 . . . Robot Hit Streak 18 | . 17 18 17 . . . Robot Miss Streak 3 | . 1 3 2 . . . Penetration Max . | . . . . . . . Secondary Targets 2 | . 1 1 . . . . Max Gunslinging Chain 1 | . 1 1 . . . . Shots Hit Robots 131 | . 48 61 19 . 3 . Core Hits 53 | . 28 17 8 . . . Critical Kills . | . . . . . . . Critical Parts Destroyed 1 | . . 1 . . . . Critical Strikes 7 | . 3 4 . . . . Corrupt 4 | . 3 1 . . . . Smash 3 | . . 3 . . . . Melee Attacks 28 | . . 22 3 . 3 . Impact 28 | . . 22 3 . 3 . Slashing . | . . . . . . . Piercing . | . . . . . . . Sneak Attacks 3 | . . . . . 3 . Combat Hostiles 2 | . . . . . 2 . Follow-up Attacks . | . . . . . . . Damage Inflicted 3442 | . 1036 1583 540 . 283 . Guns 1001 | . 608 199 194 . . . Cannons 513 | . . 372 141 . . . Explosions 946 | . 428 518 . . . . Melee 982 | . . 494 205 . 283 . Ramming . | . . . . . . . Kinetic 32 | . . 32 . . . . Thermal 941 | . 428 372 141 . . . Explosive 518 | . . 518 . . . . Electromagnetic 969 | . 608 167 194 . . . Impact 982 | . . 494 205 . 283 . Slashing . | . . . . . . . Piercing . | . . . . . . . Highest Corruption 1 | . . . 1 1 . . Average Corruption 1 | . . . 1 1 . . Corruption Purged . | . . . . . . . Corruption Blocked . | . . . . . . . Effects 5 | . . . 4 1 . . Message Errors 3 | . . . 2 1 . . Heat Flow Errors 1 | . . . 1 . . . Data Loss (major) 1 | . . . 1 . . . Overload Shots . | . . . . . . . Overflow Damage 380 | . 21 115 106 . 138 . Projectiles 8 | . . 8 . . . . Explosions 40 | . 21 19 . . . . Melee 332 | . . 88 106 . 138 . Knockbacks 9 | . . 7 . . 2 . Impact 9 | . . 7 . . 2 . Kinetic . | . . . . . . . Secondary . | . . . . . . . Self-Inflicted Damage 97 | . 73 24 . . . . Shots 5 | . 3 2 . . . . Rammed . | . . . . . . . Targets Rammed . | . . . . . . . Kicked . | . . . . . . . Crushed . | . . . . . . . Highest Temperature 398 | . 222 27 398 . . . Average Temperature 96 | . 68 14 143 . . . Received Heat Transfer 628 | . 153 360 115 . . . Effects 2 | . . . 2 . . . Shutdowns 1 | . . . 1 . . . Energy Bleed 1 | . . . 1 . . . Siege Activations . | . . . . . . . Robots Corrupted 6 | . 1 3 1 . 1 . Combat Hostiles 4 | . 1 3 . . . . Parts Fried 8 | . 2 2 1 . 3 . Impact Corruptions 10 | . . 4 2 . 4 . Robots Melted . | . . . . . . . Combat Hostiles . | . . . . . . . Parts Melted 2 | . . 1 1 . . . Heat Transferred 1423 | . 350 777 296 . . . Parts Sabotaged . | . . . . . . . Parts Stolen . | . . . . . . . Parts Stripped . | . . . . . . . Power Chain Reactions 6 | . 6 . . . . . Alert | -11 -10 -10 -9 -9 -6 -6 ------- Run | Yrd Mat Sub Rec Scr Fac Gar Peak Influence 303 | . 303 . 76 . 25 13 Initial 13 | . . . 5 . . 13 Average 38 | . 59 . 19 . 10 13 Maximum Alert Level 1 | . 1 . . . . . Low Security (%) 95 | 100 91 . 100 . 100 100 Level 1 4 | . 8 . . . . . Level 2 . | . . . . . . . Level 3 . | . . . . . . . Level 4 . | . . . . . . . Level 5 . | . . . . . . . High Security . | . . . . . . . Max Security . | . . . . . . . Squads Dispatched 2 | . 2 . . . . . Investigation 2 | . 2 . . . . . Extermination . | . . . . . . . Reinforcement . | . . . . . . . Assault . | . . . . . . . Garrison . | . . . . . . . Intercept . | . . . . . . . Searches Triggered . | . . . . . . . Construction Impeded . | . . . . . . . Haulers Reinforced . | . . . . . . . Active Scanning Responses . | . . . . . . . Cargo Convoy Interrupts . | . . . . . . . Stealth | -11 -10 -10 -9 -9 -6 -6 --------- Run | Yrd Mat Sub Rec Scr Fac Gar Distress Signals 1 | . 1 . . . . . Communications Jammed . | . . . . . . . Distress Signals . | . . . . . . . Times Spotted 56 | . 18 32 6 . . . Peak Tracking Total 3 | . 3 3 3 . . . Tactical Retreats 9 | . . 8 1 . . . Traps | -11 -10 -10 -9 -9 -6 -6 ------- Run | Yrd Mat Sub Rec Scr Fac Gar Traps Triggered 3 | . 1 2 . . . . Indirectly . | . . . . . . . Trap Hack Attempts . | . . . . . . . Triggered . | . . . . . . . Disarmed . | . . . . . . . Reprogrammed . | . . . . . . . Reused . | . . . . . . . Traps Extracted . | . . . . . . . Installed . | . . . . . . . Triggered . | . . . . . . . Machines | -11 -10 -10 -9 -9 -6 -6 ---------- Run | Yrd Mat Sub Rec Scr Fac Gar Machines Disabled 4 | . . 4 . . . . Max in Single Turn 2 | . . 2 . . . . Machines Repaired . | . . . . . . . Machines Dismantled . | . . . . . . . Machines Sabotaged . | . . . . . . . Overloaded Fab Kills . | . . . . . . . Hacking | -11 -10 -10 -9 -9 -6 -6 --------- Run | Yrd Mat Sub Rec Scr Fac Gar Machines Accessed 23 | . 10 4 3 5 1 . Terminals 8 | . 7 . 1 . . . Fabricators . | . . . . . . . Repair Stations 1 | . 1 . . . . . Recycling Units 3 | . 2 . 1 . . . Scanalyzers . | . . . . . . . Garrison Access 1 | . . . . . 1 . Total Hacks 97 | . 31 15 26 23 2 . Successful 88 | . 24 15 25 23 1 . Failed 9 | . 7 . 1 . 1 . Catastrophic . | . . . . . . . Database Lockouts . | . . . . . . . Manual 20 | . 19 . 1 . . . Terminals 24 | . 20 . 4 . . . Fabricators . | . . . . . . . Repair Stations 4 | . 4 . . . . . Recycling Units 10 | . 7 . 3 . . . Scanalyzers . | . . . . . . . Garrison Access 2 | . . . . . 2 . Terminal Hacks 69 | . 9 15 22 23 . . Record 53 | . . 12 19 22 . . Robot Schematic 1 | . . . 1 . . . Robot Analysis 1 | . . . 1 . . . Prototype ID Bank 1 | . 1 . . . . . Open Door 1 | . . 1 . . . . Alert Level 2 | . 1 . 1 . . . Locate Traps 2 | . 2 . . . . . Transport Status 1 | . 1 . . . . . Hauler Manifests 1 | . 1 . . . . . Registered Prototypes 1 | . 1 . . . . . Zone Layout 2 | . 2 . . . . . Derelict Proto ID Bank 2 | . . 1 . 1 . . Release Object 1 | . . 1 . . . . Fabricator Hacks . | . . . . . . . Repair Station Hacks 2 | . 2 . . . . . Scan Component 1 | . 1 . . . . . Repair 1 | . 1 . . . . . Recycling Unit Hacks 2 | . . . 2 . . . Report Inventory 1 | . . . 1 . . . Retrieve Components 1 | . . . 1 . . . Scanalyzer . | . . . . . . . Garrison Access Hacks 1 | . . . . . 1 . Unlock Access 1 | . . . . . 1 . Unauthorized Hacks 14 | . 13 . 1 . . . Terminals 5 | . 5 . . . . . Botnet 4 | . 4 . . . . . Operators 1 | . 1 . . . . . Fabricators . | . . . . . . . Repair Stations 1 | . 1 . . . . . Mechanics 1 | . 1 . . . . . Recycling Units 8 | . 7 . 1 . . . Reject 2 | . 2 . . . . . Recyclers 3 | . 2 . 1 . . . Mask 1 | . 1 . . . . . Tunnel 2 | . 2 . . . . . Scanalyzers . | . . . . . . . Garrison Access . | . . . . . . . Data Cores Recovered . | . . . . . . . Used . | . . . . . . . Hacking Detections 9 | . 7 . 2 . . . Full Trace Events 5 | . 3 . 2 . . . Feedback Events 1 | . . . 1 . . . Corruption 1 | . . . 1 . . . Feedback Blocked . | . . . . . . . Robot Schematics Acquired 1 | . . . 1 . . . Robots Built . | . . . . . . . Authchips . | . . . . . . . Time . | . . . . . . . Total Robot Build Rating . | . . . . . . . Part Schematics Acquired 14 | . . . . 13 . 1 Parts Built . | . . . . . . . Authchips . | . . . . . . . Time . | . . . . . . . Total Part Build Rating . | . . . . . . . Parts Repaired 1 | . 1 . . . . . Time 13 | . 13 . . . . . Parts Recycled . | . . . . . . . Recycled Matter . | . . . . . . . Retrieved Matter . | . . . . . . . Retrieved Components 3 | . . . 3 . . . Parts Scanalyzed . | . . . . . . . Part Schematics Acquired . | . . . . . . . Parts Damaged . | . . . . . . . Bothacking | -11 -10 -10 -9 -9 -6 -6 ------------ Run | Yrd Mat Sub Rec Scr Fac Gar Used RIF Installer . | . . . . . . . Robots Hacked . | . . . . . . . Non-combat . | . . . . . . . Combat . | . . . . . . . Robot Hacks Applied . | . . . . . . . Relay Couplers Released . | . . . . . . . Fabnet Peak Effective % . | . . . . . . . Robots Rewired 4 | . . . 4 . . . Allies Hacked . | . . . . . . . Hacks Repelled . | . . . . . . . Allies | -11 -10 -10 -9 -9 -6 -6 -------- Run | Yrd Mat Sub Rec Scr Fac Gar Total Allies 4 | . . . 4 . . . Largest Group 4 | . . . 4 1 1 1 Highest-Rated Group 52 | . . . 52 27 27 27 Highest-Rated Ally 27 | . . . 27 27 27 27 Total Orders . | . . . . . . . Ally Attacks 2 | . . . 2 . . . Total Damage 21 | . . . 21 . . . Kills . | . . . . . . . Allies Corrupted . | . . . . . . . Allies Melted . | . . . . . . . Intel | -11 -10 -10 -9 -9 -6 -6 ------- Run | Yrd Mat Sub Rec Scr Fac Gar Robot Analysis Total 1 | . . . 1 . . . Derelict Logs Recovered 2 | . . 1 . 1 . . Drone Launches . | . . . . . . . Drone Recoveries . | . . . . . . . Exploration | -11 -10 -10 -9 -9 -6 -6 ------------- Run | Yrd Mat Sub Rec Scr Fac Gar Turns Passed 16081 | 161 1866 7732 1447 4746 87 42 Spaces Moved 7065 | 88 1067 2595 308 2932 49 26 Core 8 | 8 . . . . . . Treads 7057 | 80 1067 2595 308 2932 49 26 Legs . | . . . . . . . Wheels . | . . . . . . . Hover . | . . . . . . . Flight . | . . . . . . . Fastest Speed 50 | 50 160 160 160 160 160 160 Average Speed 214 | 150 160 279 403 160 160 160 Slowest Speed 520 | 160 160 520 418 160 160 160 Overloaded Moves . | . . . . . . . Propulsion Burnouts . | . . . . . . . Robots Hopped . | . . . . . . . Cave-ins Triggered . | . . . . . . . Exploration Rate (%) 49 | 6 98 87 55 95 1 7 Regions Visited 6 Branch Regions 3 Pre-discovered Areas 4 | . 2 1 . 1 . . Known Exits Taken 6 | 1 1 1 1 1 1 . Unknown Exits Taken . | . . . . . . . Scrap Searched 12 | . . 4 . 8 . . Spaces Dug . | . . . . . . . Terrain Destroyed 112 | . 19 93 . . . . Melee . | . . . . . . . Projectile . | . . . . . . . AOE 112 | . 19 93 . . . . Terrain Rammed . | . . . . . . . Walls Destroyed . | . . . . . . . Machines Disabled . | . . . . . . . Actions | -11 -10 -10 -9 -9 -6 -6 --------- Run | Yrd Mat Sub Rec Scr Fac Gar Total 7817 | 117 1167 2978 490 2985 54 26 Wait 451 | 8 50 221 130 40 2 . Move 7060 | 87 1066 2594 307 2931 49 26 Hop . | . . . . . . . Pick Up 58 | 14 11 21 5 7 . . Fast Attach 6 | . . 4 1 1 . . Attach 19 | 7 2 7 2 1 . . Detach 2 | . . 1 1 . . . Swap 13 | 1 3 5 . 4 . . Drop 33 | . 5 21 6 1 . . Fire 114 | . 30 73 11 . . . Melee 28 | . . 22 3 . 3 . Ram . | . . . . . . . Kick . | . . . . . . . Crush . | . . . . . . . Escape Stasis . | . . . . . . . Rewire 33 | . . 9 24 . . . Trap . | . . . . . . . Miscellaneous . | . . . . . . . Route ------- -11/Scrapyard -10/Materials (discovered 6 exits: *Mat x3 / *Min x2 / *Sub) -10/Subcaves (discovered 3 exits: *Mat x2 / *Rec) -9/Recycling -9/Scraptown (discovered 2 exits: *Fac x2) -6/Factory -6/Garrison History --------- Turn | Location | Event 13 | -11/Scrapyard | Identified exit to Materials 13 | -11/Scrapyard | Discovered exit to Materials (range 15) 162 | -11/Scrapyard | Entered Materials 162 | -10/Materials | Evolved 1 slot: Utility x1 301 | -10/Materials | Build established: Hacker-Mutant 434 | -10/Materials | Identified exit to Mines 434 | -10/Materials | Discovered exit to Mines (range 12) 708 | -10/Materials | Identified exit to Materials 708 | -10/Materials | Discovered exit to Materials (range 16) 848 | -10/Materials | Discovered exit to Mines (range 11) 926 | -10/Materials | Discovered exit to Materials (range 14) 1349 | -10/Materials | Discovered exit to Materials (range 16) 1454 | -10/Materials | Repaired Ion Engine 1767 | -10/Materials | Identified exit to Subcaves 1767 | -10/Materials | Discovered exit to Subcaves (range 9) 2028 | -10/Materials | Entered Subcaves 2251 | -10/Subcaves | Identified exit to Materials 2251 | -10/Subcaves | Discovered exit to Materials (range 12) 2256 | -10/Subcaves | Shifting Twisted Machinery released Sub. Monowheel 2266 | -10/Subcaves | Shifting Twisted Machinery released Battle Cannon 2339 | -10/Subcaves | Shifting Twisted Machinery released Battle Rifle 2344 | -10/Subcaves | Shifting Twisted Machinery released Sub. Power Source 2404 | -10/Subcaves | Identified exit to Recycling 2404 | -10/Subcaves | Discovered exit to Recycling (range 11) 2485 | -10/Subcaves | Disturbed a concealed Subdweller 2626 | -10/Subcaves | Visited Clippyterm 2631 | -10/Subcaves | Learned Factory garrison access intel 2631 | -10/Subcaves | Learned Factory emergency access door positions 3084 | -10/Subcaves | Found SUBCON Basin 3625 | -10/Subcaves | A swath of the cavern ceiling suddenly collapsed 4100 | -10/Subcaves | Shifting Twisted Machinery released Mak. Light Armor Plating 4104 | -10/Subcaves | Shifting Twisted Machinery released Sub. Laser 4128 | -10/Subcaves | Discovered exit to Materials (range 8) 4182 | -10/Subcaves | Curiously followed by a Cobbler waking with a query about "LVR3C" 4708 | -10/Subcaves | Visited 4L-MR0's lab 5306 | -10/Subcaves | Build established: Hauler-Mutant 5883 | -10/Subcaves | Learned location of Recycling (-9) 5978 | -10/Subcaves | A swath of the cavern ceiling suddenly collapsed 6637 | -10/Subcaves | Core integrity fell below 50% 8986 | -10/Subcaves | Found Meta Core 8988 | -10/Subcaves | Attached Meta Core, gained temporary slots: Propulsion, Utility, Weapon 9760 | -10/Subcaves | Entered Recycling 10448 | -9/Recycling | Core integrity fell below 20% 10740 | -9/Recycling | Scanned before Scraplab entrance 10803 | -9/Recycling | Entered Scraplab 10965 | -9/Recycling | Identified exit to Scraptown 10965 | -9/Recycling | Discovered exit to Scraptown (range 3) 11207 | -9/Recycling | Entered Scraptown 11207 | -9/Scraptown | Accompanied by 1 ally 11220 | -9/Scraptown | System corruption cleaned by C-Scrubber 11230 | -9/Scraptown | Heard Great Nut preacher, LISTEN AND RECITE! 11352 | -9/Scraptown | Build established: Hacker-Mutant 11684 | -9/Scraptown | Visited Shadow of the Wyrm 11746 | -9/Scraptown | Visited UFD Registry 11770 | -9/Scraptown | Visited The Evicted 11817 | -9/Scraptown | Visited Assassins FH 11876 | -9/Scraptown | Scanned Subdweller tech in exchange for log data 11882 | -9/Scraptown | Learned location of Armory (-4) 11924 | -9/Scraptown | Identified exit to Factory 11924 | -9/Scraptown | Discovered exit to Factory (range 7) 12506 | -9/Scraptown | Registered with UFD as "Spikenade" 12543 | -9/Scraptown | Visited Botcube Research 12586 | -9/Scraptown | Visited Scrapoid Pod Storage 12758 | -9/Scraptown | Visited Science Guys 12789 | -9/Scraptown | Tech Extrapolator generated special schematic: Machine Rigger 12831 | -9/Scraptown | Visited Research Penetration Think Tank 12873 | -9/Scraptown | Visited Chapter 10 12982 | -9/Scraptown | Discovered exit to Factory (range 3) 13145 | -9/Scraptown | Visited Junk Repository 13318 | -9/Scraptown | Visited Scrap Suit Storage 13361 | -9/Scraptown | Visited DA-N13 Charitable Foundation 13375 | -9/Scraptown | Found DCF Scrap (29 items) 13476 | -9/Scraptown | Delivered Scrap Shield to a Scientist 13850 | -9/Scraptown | Visited SPCMW 13978 | -9/Scraptown | Visited Junk Repository 14012 | -9/Scraptown | Visited Red Mages 14134 | -9/Scraptown | Visited Bundlers 15746 | -9/Scraptown | Found Scrap Suit 15953 | -9/Scraptown | Entered Factory 15953 | -6/Factory | Accompanied by 1 ally 15953 | -6/Factory | Evolved 8 slots: Power x1, Propulsion x3, Utility x3, Weapon x1 15955 | -6/Factory | Loaded intel: 3 garrison access locations 16040 | -6/Factory | Identified exit to Garrison 16040 | -6/Factory | Entered Garrison 16040 | -6/Garrison | Accompanied by 1 ally 16082 | -6/Garrison | Self-destructed Last Messages --------------- 15994_ Terrain Scan Processor fried. 15994_ Wheel fried. 16000_ K-01 Serf pushes S-27 Virus. 16000_ Sneak attack on S-27 Virus. 16000_ S-27 Virus knocked back. 16004_ Sneak attack on S-27 Virus. 16004_ Destroyed Autogun. 16004_ S-27 Virus system corrupted by crushing effect. 16004_ VTOL Module fried. 16004_ S-27 Virus destroyed. 16040_ Connecting with Garrison Access... >>Unlock Access door unlocked. 16040_ EXIT=UNLOCKED: GARRISON LOCATION=GARRISON GOAL=ESCAPE 16082_ Tech Extrapolator generates new schematic "Spk. Medium Treads". Influences: Med. Treads, Mak. Spear. Map ----- +----------------------------------------------------+ | ?????????????????????????????????????????????? | | ?????????????????????????????????????????????? | | ?????????????????????????????????????????????? | | ?????????????????????????????????????????????? | | ?????????????????????????????????????????????? | | ?????????????????????????????????????????????? | | ?????????????????????????????????????????????? | | ???????????????????????####??????????????????? | | ??????????????????????## #??????????????????? | | ??????????????????????# ??????????????????? | | ??????????????????????? ??????????????????? | | ???????????????????????? #??????????????????? | | ????????????????????????# #??????????????????? | | ????????################# ############???????? | | ??????? #???????? | | ??????? #???????? | | ??????? #???????? | | ??????????????###### ### ######## #???????? | | ???????????????????# ??# #??????# #???????? | | ???????????????????# ???# #??????#####???????? | | ???????????????????# ???# #??????????????????? | | ??????????????????? ????#i#??????????????????? | | ?????????????????? ????# #??????????????????? | | ??????????????????#?????# #??????????????????? | | ????????????????????????# #??????????????????? | | ????????????????????????#@#??????????????????? | | ????????????????????????# #??????????????????? | | ????????????????????????# #??????????????????? | | ???????????????????????? ??????????????????? | | ????????????????????????" "??????????????????? | | ????????????????????????" "??????????????????? | | ????????????????????????" "??????????????????? | | ???????????????????????#"""#?????????????????? | | ????????????????????????###??????????????????? | | ?????????????????????????????????????????????? | | ?????????????????????????????????????????????? | | ?????????????????????????????????????????????? | | ?????????????????????????????????????????????? | | ?????????????????????????????????????????????? | | ?????????????????????????????????????????????? | | ?????????????????????????????????????????????? | | ?????????????????????????????????????????????? | | ?????????????????????????????????????????????? | | ?????????????????????????????????????????????? | | ?????????????????????????????????????????????? | | ?????????????????????????????????????????????? | | ?????????????????????????????????????????????? | | ?????????????????????????????????????????????? | | ?????????????????????????????????????????????? | | ?????????????????????????????????????????????? | +----------------------------------------------------+ Best States ------------- Heat Dissipation 37 Energy Generation 17 Energy Capacity 265 Matter Stores 300 Matter Capacity 300 Sight Range 16 Terrain Scan Range 14 Terrain Scan Density 10 Armor Coverage 800 Resistance: KI 35 Resistance: TH 35 Resistance: EX 35 Resistance: EM 35 Resistance: I 35 Resistance: S 35 Resistance: P 35 Evasion (%) 40 Recoil Reduction 3 Offensive Hacking 31 Item Schematics ----------------- Mak. Power Shielding | -9/Scraptown | Extrapolated Mak. Leg | -9/Scraptown | Extrapolated Spk. Treads | -9/Scraptown | Extrapolated Mak. Coolant Network | -9/Scraptown | Extrapolated Mak. Light Armor Plating | -9/Scraptown | Extrapolated Mak. Flight Unit | -9/Scraptown | Extrapolated Mak. Targeting Computer | -9/Scraptown | Extrapolated Mak. Heavy Armor Plating | -9/Scraptown | Extrapolated Mak. Medium Armor Plating | -9/Scraptown | Extrapolated Mak. Ablative Armor | -9/Scraptown | Extrapolated Machine Rigger | -9/Scraptown | Extrapolated Battle Rifle | -9/Scraptown | Extrapolated Mak. Terrain Scanner | -9/Scraptown | Extrapolated Spk. Medium Treads | -6/Garrison | Extrapolated Robot Schematics ------------------ L-31 Rogue | -9/Recycling | Hacked Fabricated ------------ Nothing Alien Tech Used ----------------- None Achievements -------------- Novice Programmer Challenges ------------ None Game ------ Seed 80085 Manual? 1 Play Time 02:20:33 Cumulative 178.8 hours Start 2024.08.16 @ 17:42:40 End 2024.08.17 @ 12:39:53 Sessions 1 Manual Loads 0 Difficulty Explorer Special Mode None Game No. 35 Rogue 20 Adventurer 0 Explorer 15 Win Type - Total 2 Types 0/0/0/0/0/0/0/2/0 Lore% 34 Gallery% 52 Achievement% 54 Wizard Run 0 Options --------- Layout 2 ASCII 0 Keyboard 0 Movement Arrows Keybinds 0 Fullscreen 1 Font 24/Smallcaps Map View 50x44 Zoom Use 0% Tactical HUD 1 Map Filters NONE Filters NONE Steam 1 RUN: 94b82f32-dc7d-4b5f-bf28-f40a923adb15